Cogmind - Beta 11.1 @@@ ROGUE MODE // 2022.07.16 @ 08:29:18 Player: tkc Result: Destroyed by D-53 Grenadier with Mini Grenade Launcher Performance ------------- Evolutions (1) 500 Regions Visited (4) 800 Robots Destroyed (67) 335 Value Destroyed (1287) 1287 Prototype IDs (4) 80 Alien Tech Used (0) 0 Bonus (109) 109 TOTAL SCORE: 3111 Bonus ------- High Alert Combat Kills 11 Follower Combat Kills 155 Friendly Fire -57 Cogmind --------- Core Integrity 0/400 Matter 103/300 Energy 67/100 System Corruption 1% Temperature Cool (0) Movement Rolling (130) Ox2 Location -9/Mines Parts ------- > --- POWER (1) -------- (None) > --- PROPULSION (2) --- Compact Wheel Compact Wheel > --- UTILITY (4) ------ Medium Storage Unit Huge Storage Unit > --- WEAPON (2) ------- Flak Cannon > --- INVENTORY (25) --- Light Nuclear Core Compact Wheel Improved Flight Unit Improved Flight Unit High-capacity Matter Pod (25) Hacking Suite Improved EM Shotgun Beamcaster Improved Assault Rifle Improved Assault Rifle Improved Assault Rifle Improved Assault Rifle Improved Assault Rifle Improved Assault Rifle Improved Light Cannon Flak Cannon Flak Cannon Grenade Launcher Katana Peak State ------------ > --- POWER ------------ Light Ion Engine > --- PROPULSION ------- Light Treads Improved Flight Unit > --- UTILITY ---------- Huge Storage Unit Core Shielding Hardened Medium Armor Plating Hardened Medium Armor Plating > --- WEAPON ----------- Advanced Beam Cannon Improved Light Cannon > --- INVENTORY -------- Ion Engine Light Ion Engine Light Nuclear Core Light Treads Compact Wheel Compact Wheel Compact Wheel Improved Heat Sink Medium Storage Unit Large Matter Pod Improved EM Shotgun Light Assault Rifle Improved Assault Rifle Improved Assault Rifle Improved Assault Rifle Improved Assault Rifle Improved Assault Rifle Improved Assault Rifle Improved Light Cannon Improved Light Cannon Flak Cannon Flak Cannon Flak Cannon Grenade Launcher Mini Grenade Launcher [Rating: 23] Favorites ----------- Power Light Ion Engine Engine Light Ion Engine Propulsion Light Treads Treads Light Treads Leg Aluminum Leg Wheel Compact Wheel Flight Unit Improved Flight Unit Utility Core Shielding Device Heat Sink Storage Huge Storage Unit Processor Visual Processing Unit Protection Core Shielding Weapon Light Assault Rifle Energy Gun Medium Laser Energy Cannon Advanced Beam Cannon Ballistic Gun Light Assault Rifle Ballistic Cannon Improved Light Cannon Launcher Grenade Launcher Special Weapon Mining Laser Slashing Weapon Katana Build | -11 -10 -10 -9 -9 ------- Run | Scr Mat Min Mat Min Slots Evolved 2 | . . . 2 . Power . | . . . . . Propulsion . | . . . . . Utility 2 | . . . 2 . Weapon . | . . . . . Parts Attached 68 | 9 12 2 33 12 Power 11 | 1 4 . 4 2 Engine 11 | 1 4 . 4 2 Core . | . . . . . Reactor . | . . . . . Propulsion 18 | 3 3 . 7 5 Treads 6 | 1 1 . 2 2 Leg 1 | . . . 1 . Wheel 10 | 2 2 . 3 3 Hover . | . . . . . Flight 1 | . . . 1 . Utility 16 | 3 2 . 9 2 Device 4 | 1 . . 3 . Storage 5 | 2 1 . 1 1 Processor 3 | . . . 3 . Hackware . | . . . . . Protection 4 | . 1 . 2 1 Artifact . | . . . . . Weapon 23 | 2 3 2 13 3 Energy Gun 4 | 1 1 . 2 . Energy Cannon 1 | . . . 1 . Ballistic Gun 6 | 1 2 . 3 . Ballistic Cannon 7 | . . . 5 2 Launcher 2 | . . 1 . 1 Special Weapon 1 | . . 1 . . Impact Weapon . | . . . . . Slashing Weapon 2 | . . . 2 . Piercing Weapon . | . . . . . Special Melee Weapon . | . . . . . Unidentified Prototypes 4 | . . . 4 . Parts Lost 23 | . 4 . 9 10 Power 6 | . 2 . 1 3 Propulsion 7 | . 1 . 3 3 Utility 5 | . . . 3 2 Weapon 5 | . 1 . 2 2 Highest Loss Streak 7 | . 2 . 7 7 To Critical Strikes . | . . . . . Average Slot Usage (%) 97 | . 97 100 95 96 Engine 12 | . 13 14 11 11 Treads 12 | . 14 14 10 10 Wheel 11 | . 12 14 10 10 Device 2 | . 2 . 4 . Storage 14 | . 14 14 12 20 Processor 1 | . . . 3 . Protection 16 | . 11 14 21 21 Energy Gun 3 | . 7 . 3 . Ballistic Gun 8 | . 20 1 6 . Ballistic Cannon 5 | . . . 8 17 Launcher 3 | . . 12 . 2 Special Weapon 3 | . . 13 . . Naked Turns . | . . . . . Heaviest Build 117 | 16 87 88 111 117 Greatest Support 20 | 20 20 16 20 16 Greatest Overweight (x) 9 | 1 5 5 9 7 Average Overweight (x) 3 | . . 5 5 6 Largest Inventory Capacity 25 | 8 25 25 25 25 Average Capacity 20 | 7 8 25 25 25 Most Carried 25 | 8 8 13 25 25 Average Carried 15 | 6 7 11 22 24 Final Capacity 25 | 8 25 25 25 25 Final Carried 25 | 8 8 13 25 19 Class Distribution -------------------- 95% | Mutant 4% | Scavenger-Mutant Dominant Class ---------------- Mutant | -10/Materials Mutant | -10/Mines Mutant | -9/Materials Mutant | -9/Mines Resources | -11 -10 -10 -9 -9 ----------- Run | Scr Mat Min Mat Min Matter Collected 1478 | 311 215 144 674 134 Remotely . | . . . . . Salvage Created 2475 | 273 722 26 1010 444 Parts 138 | 22 48 3 55 10 Haulers Intercepted 6 | . 2 . 4 . Recyclers Shooed 4 | . 3 . 1 . Parts Field Recycled . | . . . . . Retrieved Matter . | . . . . . Parts Self-Destructed . | . . . . . Prevented . | . . . . . Kills | -11 -10 -10 -9 -9 ------- Run | Scr Mat Min Mat Min Combat Hostiles Destroyed 48 | . 14 1 13 20 Guns 18 | . 14 . 4 . Cannons 13 | . . . 9 4 AOE 17 | . . 1 . 16 Classes Destroyed 12 | 3 5 . 3 1 Worker 5 | 2 3 . . . Builder 3 | . 1 . 2 . Tunneler 7 | 5 1 . . 1 Hauler 6 | . 2 . 4 . Recycler 9 | 1 1 . 3 4 Operator 1 | . . . 1 . Watcher 3 | . 1 . 2 . Swarmer 9 | . 6 . . 3 Grunt 17 | . 8 1 7 1 Duelist 3 | . . . 2 1 Sentry 4 | . . . 4 . Assembled 15 | . . . . 15 Best Kill Streak 13 | 3 6 1 2 13 Combat Bots Only 13 | . 4 1 2 13 Max Kills in Single Turn 7 | 1 1 1 1 7 Gunslinging . | . . . . . Exploded 7 | . . 1 . 7 Melee . | . . . . . Uniques/NPCs Destroyed . | . . . . . Combat | -11 -10 -10 -9 -9 -------- Run | Scr Mat Min Mat Min Damage Taken 3489 | . 843 48 1360 1238 Core 541 | . 120 11 195 215 Absorbed by Shields . | . . . . . Redirected to Shielding 49 | . 14 2 33 . Regen/Repaired (Parts) 163 | . 71 . 92 . Core Remaining (%) 73 | 100 . 47 . . Volleys Fired 201 | 23 93 2 61 22 Largest 2 | 2 2 1 2 2 Hottest 100 | 70 70 30 100 78 Shots Fired 384 | 46 186 2 118 32 Gun 288 | 46 186 . 56 . Cannon 79 | . . . 61 18 Launcher 16 | . . 2 . 14 Special 1 | . . . 1 . Kinetic 265 | 23 121 . 103 18 Thermal 89 | 23 65 . 1 . Explosive 16 | . . 2 . 14 Electromagnetic 14 | . . . 14 . Robot Hit Streak 16 | 6 16 . 12 6 Robot Miss Streak 7 | 3 3 4 7 5 Penetration Max . | . . . . . Secondary Targets 1 | . 1 . . . Max Gunslinging Chain 1 | . 1 . . . Shots Hit Robots 255 | 30 120 . 86 19 Core Hits 149 | 13 46 3 43 44 Critical Kills . | . . . . . Critical Parts Destroyed . | . . . . . Critical Strikes 9 | 2 7 . . . Burn 9 | 2 7 . . . Melee Attacks 11 | . . . 8 3 Impact . | . . . . . Slashing 11 | . . . 8 3 Piercing . | . . . . . Sneak Attacks 8 | . . . 5 3 Combat Hostiles . | . . . . . Follow-up Attacks . | . . . . . Damage Inflicted 4968 | 317 1203 139 1625 1684 Guns 1953 | 317 1195 . 441 . Cannons 1032 | . . . 724 308 Explosions 1431 | . . 139 88 1204 Melee 544 | . . . 372 172 Ramming 8 | . 8 . . . Kinetic 2037 | 142 611 . 976 308 Thermal 805 | 175 584 . 46 . Explosive 1343 | . . 139 . 1204 Electromagnetic 231 | . . . 231 . Impact . | . . . . . Slashing 544 | . . . 372 172 Piercing . | . . . . . Highest Corruption 1 | . . . 1 1 Average Corruption 1 | . . . 1 1 Corruption Purged . | . . . . . Corruption Blocked . | . . . . . Effects 7 | . . . 2 5 Message Errors 3 | . . . 1 2 Matter Fused 2 | . . . . 2 Data Loss (minor) 2 | . . . 1 1 Overload Shots . | . . . . . Overflow Damage 194 | . . . 129 65 Projectiles . | . . . . . Explosions 91 | . . . 46 45 Melee 103 | . . . 83 20 Knockbacks 9 | . . . 6 3 Impact . | . . . . . Kinetic 8 | . . . 5 3 Secondary 1 | . . . 1 . Self-Inflicted Damage 178 | . 4 2 150 22 Shots 7 | . . 1 4 2 Rammed 2 | . 2 . . . Targets Rammed 2 | . 2 . . . Kicked . | . . . . . Crushed . | . . . . . Highest Temperature 272 | 80 272 4 138 162 Average Temperature 60 | 30 85 4 45 47 Received Heat Transfer 717 | . 258 27 420 12 Siege Activations . | . . . . . Robots Corrupted . | . . . . . Combat Hostiles . | . . . . . Parts Fried 2 | . . . 2 . Impact Corruptions . | . . . . . Robots Melted . | . . . . . Combat Hostiles . | . . . . . Parts Melted 4 | 1 3 . . . Heat Transferred 2886 | 666 2220 . . . Parts Sabotaged . | . . . . . Parts Stolen . | . . . . . Parts Stripped . | . . . . . Power Chain Reactions 1 | . . . 1 . Missiles Intercepted . | . . . . . Alert | -11 -10 -10 -9 -9 ------- Run | Scr Mat Min Mat Min Peak Influence 441 | 40 291 196 441 265 Initial 168 | . 26 36 . 168 Average 131 | 17 115 55 203 168 Maximum Alert Level 2 | . 1 . 2 1 Low Security (%) 73 | 100 97 100 38 50 Level 1 25 | . 2 . 58 49 Level 2 . | . . . 2 . Level 3 . | . . . . . Level 4 . | . . . . . Level 5 . | . . . . . High Security . | . . . . . Max Security . | . . . . . Squads Dispatched 8 | . 5 . 3 . Investigation 3 | . 2 . 1 . Extermination . | . . . . . Reinforcement 5 | . 3 . 2 . Assault . | . . . . . Garrison . | . . . . . Intercept . | . . . . . Searches Triggered . | . . . . . Construction Impeded . | . . . . . Haulers Reinforced . | . . . . . Active Scanning Responses . | . . . . . Cargo Convoy Interrupts . | . . . . . Stealth | -11 -10 -10 -9 -9 --------- Run | Scr Mat Min Mat Min Distress Signals 7 | . 2 . 5 . Communications Jammed . | . . . . . Distress Signals . | . . . . . Times Spotted 87 | . 22 4 34 27 Peak Tracking Total 16 | . 6 2 7 16 Tactical Retreats 4 | . 1 . 2 1 Traps | -11 -10 -10 -9 -9 ------- Run | Scr Mat Min Mat Min Traps Triggered 4 | . 4 . . . Indirectly . | . . . . . Trap Hack Attempts . | . . . . . Triggered . | . . . . . Disarmed . | . . . . . Reprogrammed . | . . . . . Reused . | . . . . . Traps Extracted . | . . . . . Installed . | . . . . . Triggered . | . . . . . Machines | -11 -10 -10 -9 -9 ---------- Run | Scr Mat Min Mat Min Machines Disabled 6 | . . 1 5 . Max in Single Turn 2 | . . 1 2 . Machines Sabotaged . | . . . . . Garrisons Compromised . | . . . . . Overloaded Fab Kills . | . . . . . Hacking | -11 -10 -10 -9 -9 --------- Run | Scr Mat Min Mat Min Machines Accessed 17 | . 7 . 10 . Terminals 12 | . 5 . 7 . Fabricators . | . . . . . Repair Stations 2 | . 1 . 1 . Recycling Units 3 | . 1 . 2 . Scanalyzers . | . . . . . Garrison Access . | . . . . . Total Hacks 55 | . 25 . 30 . Successful 30 | . 15 . 15 . Failed 25 | . 10 . 15 . Catastrophic 4 | . 1 . 3 . Database Lockouts . | . . . . . Manual 41 | . 19 . 22 . Terminals 46 | . 22 . 24 . Fabricators . | . . . . . Repair Stations 4 | . 2 . 2 . Recycling Units 5 | . 1 . 4 . Scanalyzers . | . . . . . Garrison Access . | . . . . . Terminal Hacks 12 | . 6 . 6 . Robot Analysis 1 | . 1 . . . Level Access Points 1 | . 1 . . . Branch Access Points 2 | . 1 . 1 . Terminal Index 2 | . 1 . 1 . Alert Level 3 | . 1 . 2 . Locate Traps 1 | . 1 . . . Recall Reinforcements 1 | . . . 1 . Zone Layout 1 | . . . 1 . Fabricator Hacks . | . . . . . Repair Station Hacks 4 | . 2 . 2 . Scan Component 2 | . 1 . 1 . Repair 2 | . 1 . 1 . Recycling Unit Hacks 4 | . 1 . 3 . Report Inventory 3 | . 1 . 2 . Retrieve Components 1 | . . . 1 . Scanalyzer . | . . . . . Garrison Access Hacks . | . . . . . Unauthorized Hacks 10 | . 6 . 4 . Terminals 10 | . 6 . 4 . Botnet 8 | . 5 . 3 . Disrupt 1 | . 1 . . . Operators 1 | . . . 1 . Fabricators . | . . . . . Repair Stations . | . . . . . Recycling Units . | . . . . . Scanalyzers . | . . . . . Garrison Access . | . . . . . Data Cores Recovered . | . . . . . Used . | . . . . . Hacking Detections 13 | . 5 . 8 . Full Trace Events 4 | . 3 . 1 . Feedback Events 1 | . . . 1 . Corruption 1 | . . . 1 . Feedback Blocked . | . . . . . Robot Schematics Acquired . | . . . . . Robots Built . | . . . . . Authchips . | . . . . . Time . | . . . . . Total Robot Build Rating . | . . . . . Part Schematics Acquired . | . . . . . Parts Built . | . . . . . Authchips . | . . . . . Time . | . . . . . Total Part Build Rating . | . . . . . Parts Repaired 2 | . 1 . 1 . Time 52 | . 26 . 26 . Parts Recycled . | . . . . . Recycled Matter . | . . . . . Retrieved Matter . | . . . . . Retrieved Components 3 | . . . 3 . Parts Scanalyzed . | . . . . . Part Schematics Acquired . | . . . . . Parts Damaged . | . . . . . Bothacking | -11 -10 -10 -9 -9 ------------ Run | Scr Mat Min Mat Min Used RIF Installer . | . . . . . Robots Hacked . | . . . . . Non-combat . | . . . . . Combat . | . . . . . Robot Hacks Applied . | . . . . . Relay Couplers Released . | . . . . . Fabnet Peak Effective % . | . . . . . Robots Rewired . | . . . . . Allies Hacked . | . . . . . Hacks Repelled . | . . . . . Allies | -11 -10 -10 -9 -9 -------- Run | Scr Mat Min Mat Min Total Allies 6 | . . 6 . . Largest Group 5 | . . 5 5 . Highest-Rated Group 79 | . . 79 79 . Highest-Rated Ally 31 | . . 31 31 . Total Orders . | . . . . . Ally Attacks 36 | . . 18 18 . Total Damage 494 | . . 273 221 . Kills 5 | . . 3 2 . Allies Corrupted . | . . . . . Allies Melted . | . . . . . Intel | -11 -10 -10 -9 -9 ------- Run | Scr Mat Min Mat Min Robot Analysis Total 1 | . 1 . . . Derelict Logs Recovered 2 | . . 1 . 1 Drone Launches . | . . . . . Drone Recoveries . | . . . . . Exploration | -11 -10 -10 -9 -9 ------------- Run | Scr Mat Min Mat Min Turns Passed 4974 | 205 1308 1208 1514 739 Spaces Moved 2362 | 123 671 644 610 314 Core 23 | 3 20 . . . Treads 438 | 5 430 . 3 . Legs . | . . . . . Wheels 1901 | 115 221 644 607 314 Hover . | . . . . . Flight . | . . . . . Fastest Speed 50 | 50 95 175 175 190 Average Speed 169 | 95 144 175 187 202 Slowest Speed 480 | 160 200 175 480 205 Overloaded Moves . | . . . . . Propulsion Burnouts . | . . . . . Robots Hopped . | . . . . . Cave-ins Triggered . | . . . . . Exploration Rate (%) 64 | 7 91 97 60 68 Regions Visited 4 Branch Regions 2 Pre-discovered Areas 2 | . . 1 . 1 Known Exits Taken 3 | . 1 1 1 . Unknown Exits Taken 1 | 1 . . . . Scrap Searched 2 | . . 1 . 1 Spaces Dug 1 | . . . 1 . Terrain Destroyed 147 | . . 16 43 88 Melee 1 | . . . 1 . Projectile . | . . . . . AOE 146 | . . 16 42 88 Terrain Rammed . | . . . . . Walls Destroyed . | . . . . . Machines Disabled . | . . . . . Actions | -11 -10 -10 -9 -9 --------- Run | Scr Mat Min Mat Min Total 2973 | 165 850 722 857 379 Wait 240 | . 57 70 92 21 Move 2358 | 122 670 643 609 314 Hop . | . . . . . Pick Up 53 | 8 7 5 30 3 Fast Attach 24 | 8 4 . 12 . Attach 20 | . 4 . 8 8 Detach 6 | 1 . . 4 1 Swap 24 | 1 4 2 13 4 Drop 34 | 2 9 . 20 3 Fire 201 | 23 93 2 61 22 Melee 11 | . . . 8 3 Ram 1 | . 1 . . . Kick . | . . . . . Crush 1 | . 1 . . . Escape Stasis . | . . . . . Rewire . | . . . . . Trap . | . . . . . Miscellaneous . | . . . . . Route ------- -11/Scrapyard -10/Materials (discovered 5 exits: *Mat x3 / *Min x2) -10/Mines (discovered 2 exits: *Mat x2) -9/Materials (discovered 2 exits: [*Mat] / *Min) -9/Mines (discovered 2 exits: [*Mat] / [*Exi]) History --------- Turn | Location | Event 26 | -11/Scrapyard | Discovered new exit (range 15) 206 | -11/Scrapyard | Entered Materials 318 | -10/Materials | Build established: Mutant 481 | -10/Materials | Discovered new exit (range 8) 687 | -10/Materials | Discovered new exit (range 16) 1023 | -10/Materials | Discovered new exit (range 9) 1091 | -10/Materials | Repaired Lgt. Assault Rifle 1131 | -10/Materials | Discovered new exit (range 6) 1368 | -10/Materials | Identified exit to Materials 1368 | -10/Materials | Identified exit to Mines 1514 | -10/Materials | Entered Mines 1517 | -10/Mines | Received a Mining Laser from a helpful Derelict 1518 | -10/Mines | Discovered exit to Materials (range 12) 1920 | -10/Mines | Learned location of Zion (-7) 2084 | -10/Mines | Core integrity fell below 50% 2146 | -10/Mines | Assisted by bots powering up and referring to "LRC-V3" 2284 | -10/Mines | Found a hidden stash of uninstalled traps 2704 | -10/Mines | Discovered exit to Materials (range 9) 2722 | -10/Mines | Entered Materials 2722 | -9/Materials | Accompanied by 5 allies 2722 | -9/Materials | Evolved 2 slots: Utility x2 2727 | -9/Materials | Led the pair of lost Derelicts to an unsafe place 2944 | -9/Materials | Repaired Lgt. Treads 3174 | -9/Materials | Lost 7 parts (1p3n2u1w) 3355 | -9/Materials | Identified exit to Mines 3754 | -9/Materials | Discovered new exit (range 11) 4236 | -9/Materials | Entered Mines 4257 | -9/Mines | Discovered new exit (range 15) 4502 | -9/Mines | Deemed a non-threat by the Exiles lab entrance 4502 | -9/Mines | Discovered new exit (range 5) 4906 | -9/Mines | Assembled infested the area 4911 | -9/Mines | Assisted by a Guerilla fighting off Assembled 4926 | -9/Mines | Core integrity fell below 50% 4947 | -9/Mines | Destroyed 13 combat bots 4961 | -9/Mines | Lost 3 parts (1p1n1u) 4970 | -9/Mines | Core integrity fell below 20% 4975 | -9/Mines | Destroyed by D-53 Grenadier with Mini Grenade Launcher Last Messages --------------- 04933_ K-01 Serf collects debris. 04936_ The unstable cave ceiling collapses. 04949_ as-30540 destroyed. 04955_ as-60858 knocked back. 04955_ as-86720 destroyed. 04958_ as-60858 knocked back. 04958_ Destroyed Asb. Heavy Rifle. 04961_ C-30 ARC bursts open, deploying its payload. 04961_ D-53 Grenadier unfolds itself. 04962_ Imp. Light Cannon destroyed. 04962_ Hrd. Medium Armor Plating destroyed. 04964_ Lgt. Ion Engine destroyed. 04965_ The unstable cave ceiling collapses. 04967_ Com. Wheel destroyed. 04969_ The unstable cave ceiling collapses. 04969_ Lgt. Treads destroyed. 04969_ Mni. Grenade Launcher destroyed. 04971_ The unstable cave ceiling collapses. 04973_ Lgt. Ion Engine destroyed. 04974_ The unstable cave ceiling collapses. Map ----- +----------------------------------------------------+ | | | | | | | | | | | | | | | | | | | | | | | | | | | | | ?????????????????????????????????????????????????? | | ???????????????????????????###???????????????????? | | ??????????????????????????# ##??????????????????? | | ?????????????????????????# #??????????????????? | | ????????????????????????? #??????????????????? | | ????????????????????????# ##??##???#?????????? | | ??????????????????????### ###;### ## ???????? | | ###??????###########?## # ??????? | | ######## ### ??????? | | ##### # ?????? | | #???## % ?????? | | ########????## @ ?????? | | ##????????????# ?????? | | ##?????????????## ?????? | | [ #???????????????# ?????? | | #???????????????# ##??????? | | ##???????????????## ##???????? | | #?????????????????## #????????? | | #??????????##??????# # ###????????? | | ########## #?????# d # #??????????? | | d ###? #??????????? | | #### ????##??????????? | | ##### !#???????? % ##???????????????? | | #???# #??????? ##????????????????? | | ????# #??????? ###?????????????????? | | ????# #????????# ???????????????????? | | ??### #?????????# ?????????????????????? | | ?## ###?????????### ????????????????????????? | | ## # ##???????????# ?????????????????????????? | | # #??????????????????????????????????????? | | ##??????????????????????????????????????? | | """ ##???????????????????????????????????????? | | """ ###????????????????????????????????????????? | | " " ##??????????????????????????????????????????? | | ##???????????????????????????????????????????? | | # ##????????????????????????????????????????????? | +----------------------------------------------------+ Best States ------------- Heat Dissipation 38 Energy Generation 10 Energy Capacity 250 Matter Stores 300 Matter Capacity 300 Sight Range 18 Terrain Scan Range 16 Terrain Scan Density 85 Armor Coverage 450 Core Shielding 20 Evasion (%) 44 Recoil Reduction 2 Item Schematics ----------------- None Robot Schematics ------------------ None Fabricated ------------ Nothing Alien Tech Used ----------------- None Achievements -------------- None Challenges ------------ None Game ------ Seed MinesnifferHackingScythe Manual? 0 Play Time 00:55:06 Cumulative 59.7 hours Start 2022.07.15 @ 20:48:25 End 2022.07.16 @ 08:29:18 Sessions 3 Manual Loads 0 Difficulty Rogue Special Mode None Game No. 39 Rogue 38 Adventurer 0 Explorer 1 Win Type - Total 0 Types 0/0/0/0/0/0/0/0/0 Lore% 18 Gallery% 30 Achievement% 23 Wizard Run 0 Options --------- ASCII 0 Keyboard 0 Movement Mouse Keybinds 0 Fullscreen 1 Font 18/X11 Map View 76x50 Tactical HUD 1 Map Filters NONE Filters NONE Steam 1 RUN: 77d665ab-a3f5-4c0e-9643-50b5a20df828